Workbook

Sheet TROŠKOVI PREUREĐENJA
B1: TABLICA TROŠKOVA PREUREĐENJA KUHINJE
B3: Kategorija | C3: Stavke | D3: Količina | E3: Procijenjeni trošak | F3: Stvarni trošak | G3: Ukupni procijenjeni trošak | H3: Ukupni stvarni trošak
B4: Kuhinjski elementi | C4: Donji elementi: modularni, standardni (kol. u metrima) | D4: 25 | E4: 5.00 kn | G4: =Podaci[[#This Row],[Količina]]*Podaci[[#This Row],[Procijenjeni trošak]] -> 125 kn | H4: =Podaci[[#This Row],[Količina]]*Podaci[[#This Row],[Stvarni trošak]] -> 0 kn
B5: Kuhinjski elementi | C5: Gornji elementi: modularni, standardni (kol. u metrima) | D5: 25 | E5: 3.50 kn | G5: =Podaci[[#This Row],[Količina]]*Podaci[[#This Row],[Procijenjeni trošak]] -> 88 kn | H5: =Podaci[[#This Row],[Količina]]*Podaci[[#This Row],[Stvarni trošak]] -> 0 kn
B6: Kuhinjski aparati | C6: Perilica za suđe: standardna | D6: 1 | E6: 250.00 kn | G6: =Podaci[[#This Row],[Količina]]*Podaci[[#This Row],[Procijenjeni trošak]] -> 250 kn | H6: =Podaci[[#This Row],[Količina]]*Podaci[[#This Row],[Stvarni trošak]] -> 0 kn
B7: Kuhinjski aparati | C7: Drobilica smeća: standardna | D7: 1 | E7: 175.00 kn | G7: =Podaci[[#This Row],[Količina]]*Podaci[[#This Row],[Procijenjeni trošak]] -> 175 kn | H7: =Podaci[[#This Row],[Količina]]*Podaci[[#This Row],[Stvarni trošak]] -> 0 kn
B8: Uređaji za kuhanje | C8: Štednjak: ugradbeni standardni | D8: 1 | E8: 375.00 kn | G8: =Podaci[[#This Row],[Količina]]*Podaci[[#This Row],[Procijenjeni trošak]] -> 375 kn | H8: =Podaci[[#This Row],[Količina]]*Podaci[[#This Row],[Stvarni trošak]] -> 0 kn
B9: Uređaji za kuhanje | C9: Mikrovalna pećnica: standardna | D9: 1 | E9: 300.00 kn | G9: =Podaci[[#This Row],[Količina]]*Podaci[[#This Row],[Procijenjeni trošak]] -> 300 kn | H9: =Podaci[[#This Row],[Količina]]*Podaci[[#This Row],[Stvarni trošak]] -> 0 kn
B10: Radna ploha | C10: Masivna ploha (kol. u metrima) | D10: 23 | E10: 10.00 kn | G10: =Podaci[[#This Row],[Količina]]*Podaci[[#This Row],[Procijenjeni trošak]] -> 230 kn | H10: =Podaci[[#This Row],[Količina]]*Podaci[[#This Row],[Stvarni trošak]] -> 0 kn
B11: Vrata | C11: Unutarnji dio: furnirano drvo | D11: 1 | E11: 65.00 kn | G11: =Podaci[[#This Row],[Količina]]*Podaci[[#This Row],[Procijenjeni trošak]] -> 65 kn | H11: =Podaci[[#This Row],[Količina]]*Podaci[[#This Row],[Stvarni trošak]] -> 0 kn
B12: Dodaci | C12: Dodaci: kuhalo vode, standardno | D12: 1 | E12: 120.00 kn | G12: =Podaci[[#This Row],[Količina]]*Podaci[[#This Row],[Procijenjeni trošak]] -> 120 kn | H12: =Podaci[[#This Row],[Količina]]*Podaci[[#This Row],[Stvarni trošak]] -> 0 kn
B13: Dodaci | C13: Dodaci: posudica za sapun | D13: 1 | E13: 40.00 kn | G13: =Podaci[[#This Row],[Količina]]*Podaci[[#This Row],[Procijenjeni trošak]] -> 40 kn | H13: =Podaci[[#This Row],[Količina]]*Podaci[[#This Row],[Stvarni trošak]] -> 0 kn
B14: Slavine | C14: Slavina: s ručicom, standardna | D14: 1 | E14: 130.00 kn | G14: =Podaci[[#This Row],[Količina]]*Podaci[[#This Row],[Procijenjeni trošak]] -> 130 kn | H14: =Podaci[[#This Row],[Količina]]*Podaci[[#This Row],[Stvarni trošak]] -> 0 kn
B15: Podovi | C15: Laminat (kol. u kvadratnim metrima) | D15: 165 | E15: 3.50 kn | G15: =Podaci[[#This Row],[Količina]]*Podaci[[#This Row],[Procijenjeni trošak]] -> 578 kn | H15: =Podaci[[#This Row],[Količina]]*Podaci[[#This Row],[Stvarni trošak]] -> 0 kn
B16: Strojevi za rublje | C16: Perilica: standardna | D16: 1 | E16: 500.00 kn | G16: =Podaci[[#This Row],[Količina]]*Podaci[[#This Row],[Procijenjeni trošak]] -> 500 kn | H16: =Podaci[[#This Row],[Količina]]*Podaci[[#This Row],[Stvarni trošak]] -> 0 kn
B17: Strojevi za rublje | C17: Sušilica: standardna | D17: 1 | E17: 375.00 kn | G17: =Podaci[[#This Row],[Količina]]*Podaci[[#This Row],[Procijenjeni trošak]] -> 375 kn | H17: =Podaci[[#This Row],[Količina]]*Podaci[[#This Row],[Stvarni trošak]] -> 0 kn
B18: Rasvjeta | C18: Rasvjeta: ugradbena rasvjetna tijela | D18: 4 | E18: 35.00 kn | G18: =Podaci[[#This Row],[Količina]]*Podaci[[#This Row],[Procijenjeni trošak]] -> 140 kn | H18: =Podaci[[#This Row],[Količina]]*Podaci[[#This Row],[Stvarni trošak]] -> 0 kn
B19: Hladnjaci | C19: Hladnjak: samostojeći, luksuzni | D19: 1 | E19: 1,200.00 kn | G19: =Podaci[[#This Row],[Količina]]*Podaci[[#This Row],[Procijenjeni trošak]] -> 1,200 kn | H19: =Podaci[[#This Row],[Količina]]*Podaci[[#This Row],[Stvarni trošak]] -> 0 kn
B20: Sudoperi | C20: Dvostruki od nehrđajućeg čelika, luksuzni | D20: 1 | E20: 125.00 kn | G20: =Podaci[[#This Row],[Količina]]*Podaci[[#This Row],[Procijenjeni trošak]] -> 125 kn | H20: =Podaci[[#This Row],[Količina]]*Podaci[[#This Row],[Stvarni trošak]] -> 0 kn
B21: Nape | C21: Napa: ventilacijska, standardna | D21: 1 | E21: 180.00 kn | G21: =Podaci[[#This Row],[Količina]]*Podaci[[#This Row],[Procijenjeni trošak]] -> 180 kn | H21: =Podaci[[#This Row],[Količina]]*Podaci[[#This Row],[Stvarni trošak]] -> 0 kn
B22: Zidovi | C22: Zidna obloga (kol. u kvadratnim metrima) | D22: 70 | E22: 2.00 kn | G22: =Podaci[[#This Row],[Količina]]*Podaci[[#This Row],[Procijenjeni trošak]] -> 140 kn | H22: =Podaci[[#This Row],[Količina]]*Podaci[[#This Row],[Stvarni trošak]] -> 0 kn
B23: Prozori | C23: Klizni mehanizam | D23: 2 | E23: 120.00 kn | G23: =Podaci[[#This Row],[Količina]]*Podaci[[#This Row],[Procijenjeni trošak]] -> 240 kn | H23: =Podaci[[#This Row],[Količina]]*Podaci[[#This Row],[Stvarni trošak]] -> 0 kn
B24: Ostalo | G24: =Podaci[[#This Row],[Količina]]*Podaci[[#This Row],[Procijenjeni trošak]] -> 0 kn | H24: =Podaci[[#This Row],[Količina]]*Podaci[[#This Row],[Stvarni trošak]] -> 0 kn
B25: Zbroj | E25: =SUBTOTAL(109,Podaci[Procijenjeni trošak]) -> 4,014.00 kn | F25: =SUBTOTAL(109,Podaci[Stvarni trošak]) -> 0.00 kn | G25: =SUBTOTAL(109,Podaci[Ukupni procijenjeni trošak]) -> 5,375.00 kn | H25: =SUBTOTAL(109,Podaci[Ukupni stvarni trošak]) -> 0.00 kn
B26: Podiznos | G26: =SUBTOTAL(109,Podaci[Ukupni procijenjeni trošak]) -> 5,375.00 kn | H26: =SUBTOTAL(109,Podaci[Ukupni stvarni trošak]) -> 0.00 kn
B27: Neočekivani troškovi – 30 % više | G27: =G26*0.3 -> 1,612.50 kn | H27: =H26*0.3 -> 0.00 kn
B28: Ukupno | G28: =SUM(G26:G27) -> 6,987.50 kn | H28: =SUM(H26:H27) -> 0.00 kn
